[Event "Early-Titled-Tuesday-Blitz-September-12-2023"]
[Site "Chess.com"]
[Date "2023.09.12"]
[Round "2"]
[White "Grandmaster1369"]
[Black "Alexandr_Predke"]
[Result "0-1"]
[WhiteElo "2562"]
[BlackElo "2871"]
[TimeControl "180+1"]
[EndTime "8:19:10 PDT"]
[Termination "Alexandr_Predke won on time"]

1. e4 {[%clk 0:02:59.5]} 1... c5 {[%clk 0:02:56.7]} 2. Nc3 {[%clk 0:02:59.8]}
2... Nc6 {[%clk 0:02:56.1]} 3. f4 {[%clk 0:02:58.1]} 3... g6 {[%clk 0:02:54.8]}
4. Nf3 {[%clk 0:02:58]} 4... Bg7 {[%clk 0:02:55.5]} 5. Bb5 {[%clk 0:02:58.6]}
5... Nd4 {[%clk 0:02:52]} 6. O-O {[%clk 0:02:58.7]} 6... a6 {[%clk 0:02:49.3]}
7. Bc4 {[%clk 0:02:55.7]} 7... e6 {[%clk 0:02:48.8]} 8. d3 {[%clk 0:02:54.1]}
8... b5 {[%clk 0:02:47.2]} 9. Bb3 {[%clk 0:02:54.5]} 9... Ne7 {[%clk 0:02:45]}
10. Nxd4 {[%clk 0:02:55.1]} 10... cxd4 {[%clk 0:02:42.6]} 11. Ne2 {[%clk
0:02:55.8]} 11... f5 {[%clk 0:02:34]} 12. e5 {[%clk 0:02:47.4]} 12... Qb6 {[%clk
0:02:28.8]} 13. Qe1 {[%clk 0:02:43.7]} 13... Bb7 {[%clk 0:02:25.7]} 14. Qf2
{[%clk 0:02:05.9]} 14... Nc6 {[%clk 0:02:23.8]} 15. c3 {[%clk 0:02:04.7]} 15...
d6 {[%clk 0:01:56.7]} 16. Nxd4 {[%clk 0:02:02.1]} 16... Nxd4 {[%clk 0:01:53.8]}
17. cxd4 {[%clk 0:01:58.8]} 17... d5 {[%clk 0:00:50.6]} 18. Bd2 {[%clk
0:01:52.1]} 18... Bf8 {[%clk 0:00:50.5]} 19. Rfc1 {[%clk 0:01:49.7]} 19... Be7
{[%clk 0:00:49.7]} 20. a3 {[%clk 0:01:38.2]} 20... a5 {[%clk 0:00:44.9]} 21. Rc5
{[%clk 0:01:34.4]} 21... Bxc5 {[%clk 0:00:40.8]} 22. dxc5 {[%clk 0:01:35.3]}
22... Qc6 {[%clk 0:00:37.6]} 23. d4 {[%clk 0:01:35.4]} 23... O-O {[%clk
0:00:34.4]} 24. Qh4 {[%clk 0:01:30.2]} 24... b4 {[%clk 0:00:31.6]} 25. a4 {[%clk
0:01:27.1]} 25... Ba6 {[%clk 0:00:31.3]} 26. Bd1 {[%clk 0:01:20.1]} 26... Bd3
{[%clk 0:00:30]} 27. b3 {[%clk 0:01:19.2]} 27... Be4 {[%clk 0:00:30]} 28. Be2
{[%clk 0:01:18.3]} 28... Bc2 {[%clk 0:00:28.2]} 29. Bb5 {[%clk 0:01:16.7]} 29...
Qc7 {[%clk 0:00:26.9]} 30. Qg3 {[%clk 0:01:16.9]} 30... Kh8 {[%clk 0:00:24.9]}
31. Rc1 {[%clk 0:01:16.2]} 31... Be4 {[%clk 0:00:23.2]} 32. c6 {[%clk
0:01:14.5]} 32... Ra7 {[%clk 0:00:23.4]} 33. Rc5 {[%clk 0:01:13.7]} 33... Qe7
{[%clk 0:00:21.3]} 34. h4 {[%clk 0:01:12.7]} 34... Rg8 {[%clk 0:00:21.1]} 35.
Qg5 {[%clk 0:01:13]} 35... Qf7 {[%clk 0:00:20.6]} 36. Qf6+ {[%clk 0:01:07.3]}
36... Qxf6 {[%clk 0:00:20]} 37. exf6 {[%clk 0:01:08.2]} 37... Rc7 {[%clk
0:00:19.8]} 38. Ba6 {[%clk 0:01:06.2]} 38... Ra8 {[%clk 0:00:19.6]} 39. Bb7
{[%clk 0:01:05.7]} 39... Ra7 {[%clk 0:00:14.6]} 40. h5 {[%clk 0:01:00.3]} 40...
Kg8 {[%clk 0:00:13.7]} 41. hxg6 {[%clk 0:01:00]} 41... hxg6 {[%clk 0:00:14.6]}
42. Be1 {[%clk 0:01:00.4]} 42... Kf7 {[%clk 0:00:14.4]} 43. Bh4 {[%clk
0:01:00.8]} 43... Bd3 {[%clk 0:00:12.7]} 44. Kf2 {[%clk 0:00:59.1]} 44... Be4
{[%clk 0:00:07.9]} 45. g3 {[%clk 0:00:57.7]} 45... Bb1 {[%clk 0:00:08]} 46. g4
{[%clk 0:00:45.2]} 46... fxg4 {[%clk 0:00:07.1]} 47. Kg3 {[%clk 0:00:45]} 47...
Ba2 {[%clk 0:00:05.4]} 48. Kxg4 {[%clk 0:00:40.6]} 48... Bxb3 {[%clk 0:00:06.1]}
49. Kg5 {[%clk 0:00:39.3]} 49... Bxa4 {[%clk 0:00:05.8]} 50. Rc1 {[%clk
0:00:39.6]} 50... Bxc6 {[%clk 0:00:02.8]} 51. Bxc6 {[%clk 0:00:37.7]} 51... b3
{[%clk 0:00:03.3]} 52. Rb1 {[%clk 0:00:07]} 52... Rxc6 {[%clk 0:00:02.8]} 53.
Rxb3 {[%clk 0:00:07.7]} 53... a4 {[%clk 0:00:03.2]} 54. Ra3 {[%clk 0:00:07.7]}
54... Rc4 {[%clk 0:00:02.9]} 55. Bf2 {[%clk 0:00:08.4]} 55... Rc2 {[%clk
0:00:03.3]} 56. Rh3 {[%clk 0:00:08]} 56... Kg8 {[%clk 0:00:01.9]} 57. Be1 {[%clk
0:00:02.7]} 57... a3 {[%clk 0:00:02.2]} 58. Kxg6 {[%clk 0:00:02.8]} 58... Rg2+
{[%clk 0:00:01.8]} 59. Kh6 {[%clk 0:00:02.6]} 59... a2 {[%clk 0:00:02.7]} 0-1

[Event "Early-Titled-Tuesday-Blitz-September-12-2023"]
[Site "Chess.com"]
[Date "2023.09.12"]
[Round "2"]
[White "MasterKroket"]
[Black "Fy_Rakotomaharo"]
[Result "1-0"]
[WhiteElo "2411"]
[BlackElo "2707"]
[TimeControl "180+1"]
[EndTime "8:19:14 PDT"]
[Termination "MasterKroket won on time"]

1. e4 {[%clk 0:02:59.5]} 1... d6 {[%clk 0:02:40.8]} 2. d4 {[%clk 0:02:57.4]}
2... Nf6 {[%clk 0:02:38.3]} 3. Nc3 {[%clk 0:02:57.2]} 3... c6 {[%clk 0:02:32.3]}
4. a4 {[%clk 0:02:55]} 4... g6 {[%clk 0:02:29.4]} 5. h3 {[%clk 0:02:54.1]} 5...
Bg7 {[%clk 0:02:28.9]} 6. Be3 {[%clk 0:02:48.4]} 6... O-O {[%clk 0:02:27.9]} 7.
Bd3 {[%clk 0:02:46.7]} 7... e5 {[%clk 0:02:25.7]} 8. Nge2 {[%clk 0:02:44.2]}
8... Na6 {[%clk 0:02:18.3]} 9. Bxa6 {[%clk 0:02:42]} 9... bxa6 {[%clk
0:02:18.1]} 10. dxe5 {[%clk 0:02:42.2]} 10... dxe5 {[%clk 0:02:17.4]} 11. Qxd8
{[%clk 0:02:41.2]} 11... Rxd8 {[%clk 0:02:18.3]} 12. a5 {[%clk 0:02:36.2]} 12...
Be6 {[%clk 0:02:08]} 13. b3 {[%clk 0:02:35]} 13... Bf8 {[%clk 0:02:04.4]} 14.
Ra4 {[%clk 0:02:20]} 14... Nd7 {[%clk 0:01:58.6]} 15. O-O {[%clk 0:02:09.6]}
15... Nc5 {[%clk 0:01:57.2]} 16. Raa1 {[%clk 0:02:09.8]} 16... f5 {[%clk
0:01:52]} 17. f3 {[%clk 0:02:06.6]} 17... f4 {[%clk 0:01:52.2]} 18. Bf2 {[%clk
0:02:05.3]} 18... Rd2 {[%clk 0:01:51.6]} 19. Rfc1 {[%clk 0:02:01.4]} 19... g5
{[%clk 0:01:21.2]} 20. Be1 {[%clk 0:01:57.9]} 20... Rdd8 {[%clk 0:01:17.9]} 21.
Na4 {[%clk 0:01:51.6]} 21... h5 {[%clk 0:01:10.2]} 22. Bc3 {[%clk 0:01:49.5]}
22... Nxa4 {[%clk 0:01:02]} 23. Rxa4 {[%clk 0:01:48.7]} 23... Bc5+ {[%clk
0:00:50]} 24. Kf1 {[%clk 0:01:48]} 24... Be3 {[%clk 0:00:50.5]} 25. Rca1 {[%clk
0:01:40.5]} 25... g4 {[%clk 0:00:49.6]} 26. hxg4 {[%clk 0:01:03.5]} 26... hxg4
{[%clk 0:00:50.5]} 27. Bxe5 {[%clk 0:01:03.9]} 27... gxf3 {[%clk 0:00:44.3]} 28.
Nxf4 {[%clk 0:01:03.8]} 28... fxg2+ {[%clk 0:00:34.1]} 29. Kxg2 {[%clk
0:01:02.5]} 29... Bg4 {[%clk 0:00:33.9]} 30. Rc4 {[%clk 0:00:58.4]} 30... Rd2+
{[%clk 0:00:32.8]} 31. Kg3 {[%clk 0:00:58.1]} 31... Bd7 {[%clk 0:00:21.8]} 32.
Nd3 {[%clk 0:00:58]} 32... Kf7 {[%clk 0:00:17.5]} 33. Rf1+ {[%clk 0:00:57.6]}
33... Kg6 {[%clk 0:00:12.2]} 34. Bf4 {[%clk 0:00:53]} 34... Bxf4+ {[%clk
0:00:09.7]} 35. Rxf4 {[%clk 0:00:53.9]} 35... Kh5 {[%clk 0:00:07.5]} 36. Rc5+
{[%clk 0:00:53.2]} 36... Kh6 {[%clk 0:00:07.1]} 37. Ne5 {[%clk 0:00:49.3]} 37...
Rg8+ {[%clk 0:00:06.5]} 38. Kf3 {[%clk 0:00:46.9]} 38... Be8 {[%clk 0:00:05.4]}
39. Ng4+ {[%clk 0:00:46.6]} 39... Kg7 {[%clk 0:00:02.5]} 40. Rg5+ {[%clk
0:00:45.9]} 40... Kh8 {[%clk 0:00:03.1]} 41. Rxg8+ {[%clk 0:00:41.6]} 41... Kxg8
{[%clk 0:00:04]} 42. Nf6+ {[%clk 0:00:38.3]} 42... Kf8 {[%clk 0:00:04.5]} 43.
Nd5+ {[%clk 0:00:34.4]} 43... Kg7 {[%clk 0:00:04.1]} 44. Ne3 {[%clk 0:00:34.7]}
44... Bh5+ {[%clk 0:00:04.2]} 45. Kg3 {[%clk 0:00:34.1]} 45... Re2 {[%clk
0:00:04.9]} 46. Nc4 {[%clk 0:00:31.3]} 46... Rxc2 {[%clk 0:00:04.4]} 47. Rf5
{[%clk 0:00:31.7]} 47... Bg6 {[%clk 0:00:04.5]} 48. Re5 {[%clk 0:00:30.4]} 48...
Rc3+ {[%clk 0:00:04.1]} 49. Kf4 {[%clk 0:00:30]} 49... Rxb3 {[%clk 0:00:04.9]}
50. Re7+ {[%clk 0:00:30.3]} 50... Kh6 {[%clk 0:00:05.5]} 51. Rxa7 {[%clk
0:00:30.7]} 51... Rb4 {[%clk 0:00:05.9]} 52. Nd6 {[%clk 0:00:30.4]} 52... Rb1
{[%clk 0:00:03.6]} 53. Rxa6 {[%clk 0:00:29.9]} 53... Rf1+ {[%clk 0:00:03.5]} 54.
Ke5 {[%clk 0:00:29.3]} 54... c5 {[%clk 0:00:04]} 55. Rc6 {[%clk 0:00:28.2]}
55... Rc1 {[%clk 0:00:03.7]} 56. a6 {[%clk 0:00:28.3]} 56... Ra1 {[%clk
0:00:02.9]} 57. Nc4 {[%clk 0:00:25.5]} 57... Kg5 {[%clk 0:00:03.3]} 58. Kd5
{[%clk 0:00:23.4]} 58... Rd1+ {[%clk 0:00:02.2]} 59. Kxc5 {[%clk 0:00:21.7]}
59... Bxe4 {[%clk 0:00:01.6]} 60. Rd6 {[%clk 0:00:20.9]} 60... Rc1 {[%clk
0:00:01.6]} 61. a7 {[%clk 0:00:19.9]} 61... Ra1 {[%clk 0:00:02.4]} 62. Kb6
{[%clk 0:00:20.1]} 62... Bf3 {[%clk 0:00:01.9]} 63. Na5 {[%clk 0:00:19.6]} 63...
Rb1+ {[%clk 0:00:02.8]} 64. Kc7 {[%clk 0:00:18.5]} 64... Ra1 {[%clk 0:00:03.7]}
65. Ra6 {[%clk 0:00:18]} 65... Be2 {[%clk 0:00:03.5]} 66. a8=Q {[%clk
0:00:17.2]} 66... Bxa6 {[%clk 0:00:04.2]} 67. Qxa6 {[%clk 0:00:17.7]} 67... Rc1+
{[%clk 0:00:05.1]} 68. Nc6 {[%clk 0:00:17.5]} 1-0

[Event "Early-Titled-Tuesday-Blitz-September-12-2023"]
[Site "Chess.com"]
[Date "2023.09.12"]
[Round "2"]
[White "hellokostya"]
[Black "MITerryble"]
[Result "0-1"]
[WhiteElo "2608"]
[BlackElo "2929"]
[TimeControl "180+1"]
[EndTime "8:19:16 PDT"]
[Termination "MITerryble won by resignation"]

1. d4 {[%clk 0:03:00.9]} 1... e6 {[%clk 0:02:59.5]} 2. c4 {[%clk 0:02:59.7]}
2... Bb4+ {[%clk 0:02:59.3]} 3. Bd2 {[%clk 0:02:56.7]} 3... c5 {[%clk
0:02:55.3]} 4. Bxb4 {[%clk 0:02:52.6]} 4... cxb4 {[%clk 0:02:56.2]} 5. g3 {[%clk
0:02:50.7]} 5... Nf6 {[%clk 0:02:54]} 6. Bg2 {[%clk 0:02:50.9]} 6... O-O {[%clk
0:02:53.3]} 7. Nf3 {[%clk 0:02:45.7]} 7... d6 {[%clk 0:02:52.9]} 8. O-O {[%clk
0:02:45.9]} 8... a5 {[%clk 0:02:52.6]} 9. Qd3 {[%clk 0:02:46.2]} 9... Qc7 {[%clk
0:02:43.9]} 10. Nbd2 {[%clk 0:02:45.3]} 10... b6 {[%clk 0:02:38.8]} 11. e4
{[%clk 0:02:38.4]} 11... e5 {[%clk 0:02:33.9]} 12. Ne1 {[%clk 0:02:37.6]} 12...
Nc6 {[%clk 0:02:32.4]} 13. Nc2 {[%clk 0:02:37.3]} 13... Ba6 {[%clk 0:02:17.5]}
14. b3 {[%clk 0:02:33.9]} 14... Rab8 {[%clk 0:02:15.1]} 15. Rfe1 {[%clk
0:02:27.2]} 15... Nd7 {[%clk 0:02:09.9]} 16. Rac1 {[%clk 0:02:20.9]} 16... Rfe8
{[%clk 0:02:05.9]} 17. Nf1 {[%clk 0:02:17.4]} 17... b5 {[%clk 0:01:59.6]} 18.
cxb5 {[%clk 0:02:04.6]} 18... Bxb5 {[%clk 0:01:59.7]} 19. Qd2 {[%clk 0:02:05.3]}
19... Bxf1 {[%clk 0:01:51.9]} 20. Bxf1 {[%clk 0:02:03.9]} 20... Qa7 {[%clk
0:01:38.2]} 21. Bh3 {[%clk 0:01:53.7]} 21... Nf6 {[%clk 0:01:34.7]} 22. d5
{[%clk 0:01:51.3]} 22... Nd8 {[%clk 0:01:21.2]} 23. Qe3 {[%clk 0:01:37.8]} 23...
Qa8 {[%clk 0:01:04.8]} 24. Qd3 {[%clk 0:01:09.6]} 24... Nb7 {[%clk 0:01:04.1]}
25. Ne3 {[%clk 0:01:09.3]} 25... Nc5 {[%clk 0:01:04.3]} 26. Rxc5 {[%clk
0:01:09.3]} 26... dxc5 {[%clk 0:01:05.2]} 27. Nc4 {[%clk 0:01:07]} 27... a4
{[%clk 0:01:03.9]} 28. d6 {[%clk 0:01:05]} 28... axb3 {[%clk 0:01:01.2]} 29.
axb3 {[%clk 0:01:05]} 29... Qc6 {[%clk 0:01:00.9]} 30. f3 {[%clk 0:00:56.5]}
30... Rbd8 {[%clk 0:00:45.1]} 31. Rd1 {[%clk 0:00:56.1]} 31... Nd7 {[%clk
0:00:42]} 32. Na5 {[%clk 0:00:47.5]} 32... Qb6 {[%clk 0:00:40.5]} 33. Nc4 {[%clk
0:00:47.5]} 33... Qb7 {[%clk 0:00:38.8]} 34. Na5 {[%clk 0:00:46.8]} 34... Qb6
{[%clk 0:00:35.9]} 35. Nc4 {[%clk 0:00:47]} 35... Qa7 {[%clk 0:00:19.1]} 36. Qd5
{[%clk 0:00:44.6]} 36... Kf8 {[%clk 0:00:18.6]} 37. Bxd7 {[%clk 0:00:41.6]}
37... Qxd7 {[%clk 0:00:08.7]} 38. Nxe5 {[%clk 0:00:42]} 38... Qe6 {[%clk
0:00:09]} 39. d7 {[%clk 0:00:33]} 39... Re7 {[%clk 0:00:09.3]} 40. f4 {[%clk
0:00:20.3]} 40... f6 {[%clk 0:00:02.3]} 41. Nc6 {[%clk 0:00:17.7]} 41... Rdxd7
{[%clk 0:00:02.3]} 42. Nxe7 {[%clk 0:00:03.2]} 42... Rxd5 {[%clk 0:00:02.7]} 43.
Nxd5 {[%clk 0:00:03.8]} 43... Qxe4 {[%clk 0:00:03.3]} 44. Kf2 {[%clk 0:00:02.9]}
44... Qc2+ {[%clk 0:00:03.3]} 45. Ke1 {[%clk 0:00:03.5]} 45... Qxb3 {[%clk
0:00:02.9]} 46. Ke2 {[%clk 0:00:04.2]} 46... Qc2+ {[%clk 0:00:03.1]} 47. Rd2
{[%clk 0:00:04.9]} 47... Qe4+ {[%clk 0:00:03.1]} 48. Ne3 {[%clk 0:00:05.8]}
48... b3 {[%clk 0:00:03.4]} 49. Rd8+ {[%clk 0:00:05.9]} 49... Kf7 {[%clk
0:00:03.2]} 50. Rb8 {[%clk 0:00:06.8]} 50... c4 {[%clk 0:00:03.3]} 51. Rb4
{[%clk 0:00:06.8]} 51... Qd3+ {[%clk 0:00:03.2]} 52. Kf2 {[%clk 0:00:07.2]}
52... b2 {[%clk 0:00:02.5]} 53. Rxb2 {[%clk 0:00:07]} 53... c3 {[%clk
0:00:03.2]} 54. Rc2 {[%clk 0:00:07.6]} 54... Qd4 {[%clk 0:00:03]} 55. Ke2 {[%clk
0:00:07.9]} 55... g6 {[%clk 0:00:03.5]} 56. Kf2 {[%clk 0:00:08.2]} 56... g5
{[%clk 0:00:03.3]} 57. fxg5 {[%clk 0:00:08.1]} 57... fxg5 {[%clk 0:00:04.2]} 58.
Ke2 {[%clk 0:00:08.7]} 58... Kg6 {[%clk 0:00:04.7]} 59. Kf2 {[%clk 0:00:09.2]}
59... Qd3 {[%clk 0:00:04.6]} 60. Re2 {[%clk 0:00:09]} 60... h5 {[%clk 0:00:04]}
61. Rc2 {[%clk 0:00:08.6]} 61... g4 {[%clk 0:00:03.6]} 62. Re2 {[%clk
0:00:08.5]} 62... Qe4 {[%clk 0:00:03.9]} 63. Rc2 {[%clk 0:00:08.8]} 63... Qh1
{[%clk 0:00:03.4]} 64. Ke2 {[%clk 0:00:08.2]} 64... Qxh2+ {[%clk 0:00:03.4]} 65.
Kd3 {[%clk 0:00:07.9]} 65... Qxg3 {[%clk 0:00:04]} 66. Rxc3 {[%clk 0:00:08.6]}
66... Qd6+ {[%clk 0:00:04.6]} 67. Ke2 {[%clk 0:00:08.8]} 67... Qa6+ {[%clk
0:00:05.5]} 68. Kf2 {[%clk 0:00:09]} 68... Qf6+ {[%clk 0:00:06]} 69. Ke2 {[%clk
0:00:09.3]} 69... Qxc3 {[%clk 0:00:06.6]} 0-1

[Event "Early-Titled-Tuesday-Blitz-September-12-2023"]
[Site "Chess.com"]
[Date "2023.09.12"]
[Round "2"]
[White "Firouzja2003"]
[Black "SashaKuzhilniy"]
[Result "1-0"]
[WhiteElo "3067"]
[BlackElo "2648"]
[TimeControl "180+1"]
[EndTime "8:19:17 PDT"]
[Termination "Firouzja2003 won by resignation"]

1. e4 {[%clk 0:02:53.7]} 1... c5 {[%clk 0:02:58.5]} 2. Nf3 {[%clk 0:02:44.8]}
2... d6 {[%clk 0:02:58.5]} 3. d4 {[%clk 0:02:34]} 3... cxd4 {[%clk 0:02:59.4]}
4. Nxd4 {[%clk 0:02:34.9]} 4... Nf6 {[%clk 0:02:59.5]} 5. Nc3 {[%clk 0:02:34.9]}
5... Nc6 {[%clk 0:03:00]} 6. f3 {[%clk 0:02:34.8]} 6... e5 {[%clk 0:02:59.6]} 7.
Nb3 {[%clk 0:02:32.4]} 7... Be6 {[%clk 0:03:00.1]} 8. Be3 {[%clk 0:02:32]} 8...
d5 {[%clk 0:03:00.5]} 9. exd5 {[%clk 0:02:31.6]} 9... Nxd5 {[%clk 0:03:01.4]}
10. Nxd5 {[%clk 0:02:31.9]} 10... Qxd5 {[%clk 0:03:02.3]} 11. Qxd5 {[%clk
0:02:28.2]} 11... Bxd5 {[%clk 0:03:03.2]} 12. O-O-O {[%clk 0:02:28.8]} 12...
O-O-O {[%clk 0:03:03.1]} 13. Bd3 {[%clk 0:02:26.7]} 13... Be7 {[%clk 0:03:01.1]}
14. Kb1 {[%clk 0:02:19.3]} 14... h5 {[%clk 0:02:46.6]} 15. Rhe1 {[%clk
0:02:17.5]} 15... Kc7 {[%clk 0:02:41.8]} 16. c3 {[%clk 0:02:13.4]} 16... b6
{[%clk 0:02:33.2]} 17. Kc2 {[%clk 0:02:10.6]} 17... g6 {[%clk 0:02:24.8]} 18.
Nd2 {[%clk 0:01:59]} 18... Rd7 {[%clk 0:02:20.1]} 19. Bc4 {[%clk 0:01:52.2]}
19... Rhd8 {[%clk 0:02:19.2]} 20. Bxd5 {[%clk 0:01:52.2]} 20... Rxd5 {[%clk
0:02:20.1]} 21. Re2 {[%clk 0:01:48.2]} 21... Bc5 {[%clk 0:01:56.4]} 22. Bxc5
{[%clk 0:01:45]} 22... Rxc5 {[%clk 0:01:57.3]} 23. Kb1 {[%clk 0:01:28.7]} 23...
Rcd5 {[%clk 0:01:51.1]} 24. Kc1 {[%clk 0:01:26.8]} 24... Na5 {[%clk 0:01:36.7]}
25. Rde1 {[%clk 0:01:21.4]} 25... Nb7 {[%clk 0:01:15.1]} 26. Ne4 {[%clk
0:01:16]} 26... Na5 {[%clk 0:00:58.2]} 27. Ng5 {[%clk 0:01:11.5]} 27... R8d7
{[%clk 0:00:53.9]} 28. Rxe5 {[%clk 0:00:48.4]} 28... Rxe5 {[%clk 0:00:47.3]} 29.
Rxe5 {[%clk 0:00:49.3]} 29... f6 {[%clk 0:00:46.6]} 30. Ne6+ {[%clk 0:00:49.5]}
30... Kd6 {[%clk 0:00:45.4]} 31. Re2 {[%clk 0:00:48.3]} 31... Re7 {[%clk
0:00:39]} 32. Nf4 {[%clk 0:00:48.6]} 32... Rxe2 {[%clk 0:00:38.9]} 33. Nxe2
{[%clk 0:00:49.5]} 33... Ke5 {[%clk 0:00:25.5]} 34. b3 {[%clk 0:00:47.4]} 34...
Nb7 {[%clk 0:00:24.7]} 35. Kd2 {[%clk 0:00:46.6]} 35... g5 {[%clk 0:00:23.7]}
36. Nd4 {[%clk 0:00:46]} 36... Kd5 {[%clk 0:00:20.7]} 37. Ke3 {[%clk 0:00:45.4]}
37... Nd6 {[%clk 0:00:20.2]} 38. c4+ {[%clk 0:00:43.2]} 38... Kc5 {[%clk
0:00:17.5]} 39. Kd3 {[%clk 0:00:43.4]} 39... a6 {[%clk 0:00:16.2]} 40. a3 {[%clk
0:00:41.1]} 40... a5 {[%clk 0:00:14.1]} 41. Kc3 {[%clk 0:00:40]} 41... Nf7
{[%clk 0:00:14.6]} 42. b4+ {[%clk 0:00:36.7]} 42... axb4+ {[%clk 0:00:15.5]} 43.
axb4+ {[%clk 0:00:37.4]} 43... Kd6 {[%clk 0:00:16.2]} 44. Nf5+ {[%clk 0:00:37]}
44... Ke5 {[%clk 0:00:15.6]} 45. Ne3 {[%clk 0:00:37.3]} 45... Nd6 {[%clk
0:00:14.8]} 46. Kd3 {[%clk 0:00:32.6]} 46... f5 {[%clk 0:00:14.9]} 47. Nd5
{[%clk 0:00:24.9]} 47... b5 {[%clk 0:00:13.4]} 48. Nb6 {[%clk 0:00:25.6]} 48...
g4 {[%clk 0:00:10.5]} 49. Nd7+ {[%clk 0:00:19.6]} 49... Ke6 {[%clk 0:00:09.8]}
50. Nc5+ {[%clk 0:00:17.9]} 50... Ke5 {[%clk 0:00:07.6]} 51. cxb5 {[%clk
0:00:18.4]} 51... Nxb5 {[%clk 0:00:08.1]} 52. Ke3 {[%clk 0:00:18.8]} 52... f4+
{[%clk 0:00:08.2]} 53. Kd3 {[%clk 0:00:19]} 53... Nd6 {[%clk 0:00:07]} 54. Nd7+
{[%clk 0:00:09.4]} 54... Ke6 {[%clk 0:00:06.9]} 55. Nc5+ {[%clk 0:00:09.6]}
55... Kd5 {[%clk 0:00:07.4]} 56. Ne4 {[%clk 0:00:10]} 56... Nf5 {[%clk
0:00:06.2]} 57. fxg4 {[%clk 0:00:08.4]} 57... hxg4 {[%clk 0:00:03.8]} 58. Nf6+
{[%clk 0:00:09.1]} 58... Kc6 {[%clk 0:00:03]} 59. Nxg4 {[%clk 0:00:09.2]} 59...
Kb5 {[%clk 0:00:03.9]} 60. Ke4 {[%clk 0:00:06.6]} 60... Nh4 {[%clk 0:00:04.4]}
61. Kxf4 {[%clk 0:00:06.3]} 61... Nxg2+ {[%clk 0:00:04.6]} 62. Kg3 {[%clk
0:00:05.4]} 62... Ne1 {[%clk 0:00:05]} 63. h4 {[%clk 0:00:05.9]} 63... Nd3
{[%clk 0:00:05.6]} 64. h5 {[%clk 0:00:06.1]} 64... Nxb4 {[%clk 0:00:06.3]} 65.
h6 {[%clk 0:00:05.6]} 65... Nd5 {[%clk 0:00:07]} 66. h7 {[%clk 0:00:05.1]} 66...
Ne7 {[%clk 0:00:07.6]} 67. h8=Q {[%clk 0:00:05.5]} 1-0

[Event "Early-Titled-Tuesday-Blitz-September-12-2023"]
[Site "Chess.com"]
[Date "2023.09.12"]
[Round "2"]
[White "ErikRonka"]
[Black "baki83"]
[Result "0-1"]
[WhiteElo "2546"]
[BlackElo "2808"]
[TimeControl "180+1"]
[EndTime "8:19:27 PDT"]
[Termination "baki83 won by resignation"]

1. e4 {[%clk 0:03:00.9]} 1... c5 {[%clk 0:02:54.6]} 2. Nf3 {[%clk 0:03:00.8]}
2... d6 {[%clk 0:02:55]} 3. d4 {[%clk 0:03:01.3]} 3... cxd4 {[%clk 0:02:55.4]}
4. Nxd4 {[%clk 0:03:02.2]} 4... Nf6 {[%clk 0:02:55.8]} 5. Nc3 {[%clk 0:03:02.7]}
5... Nc6 {[%clk 0:02:56.4]} 6. Bg5 {[%clk 0:03:02.7]} 6... e6 {[%clk 0:02:56.5]}
7. Qd2 {[%clk 0:03:03.1]} 7... a6 {[%clk 0:02:56.9]} 8. O-O-O {[%clk 0:03:03.2]}
8... Bd7 {[%clk 0:02:57.5]} 9. f4 {[%clk 0:03:03.3]} 9... Be7 {[%clk 0:02:57.3]}
10. Nf3 {[%clk 0:03:01.9]} 10... b5 {[%clk 0:02:56.6]} 11. Bxf6 {[%clk 0:03:00]}
11... gxf6 {[%clk 0:02:56.5]} 12. f5 {[%clk 0:03:00.3]} 12... Qa5 {[%clk
0:02:53.9]} 13. Kb1 {[%clk 0:02:53.9]} 13... h5 {[%clk 0:02:47.7]} 14. g3 {[%clk
0:02:51.2]} 14... O-O-O {[%clk 0:02:33.9]} 15. Bh3 {[%clk 0:02:41.1]} 15... b4
{[%clk 0:02:32.6]} 16. Ne2 {[%clk 0:02:39]} 16... e5 {[%clk 0:02:31.5]} 17. c3
{[%clk 0:02:11]} 17... Kb8 {[%clk 0:02:15.7]} 18. cxb4 {[%clk 0:02:01.8]} 18...
Nxb4 {[%clk 0:02:08.4]} 19. Nc3 {[%clk 0:01:56.1]} 19... d5 {[%clk 0:01:10.2]}
20. a3 {[%clk 0:01:21.9]} 20... dxe4 {[%clk 0:01:04.5]} 21. Nxe4 {[%clk
0:01:04]} 21... Ba4 {[%clk 0:00:44]} 22. Qe2 {[%clk 0:00:31]} 22... Bc2+ {[%clk
0:00:36.5]} 23. Ka1 {[%clk 0:00:29.1]} 23... Bxd1 {[%clk 0:00:18.8]} 24. Rxd1
{[%clk 0:00:30]} 24... Rxd1+ {[%clk 0:00:18.7]} 25. Qxd1 {[%clk 0:00:30.9]}
25... Rd8 {[%clk 0:00:15.4]} 26. Qb3 {[%clk 0:00:29]} 26... Qd5 {[%clk
0:00:15.3]} 27. Qxd5 {[%clk 0:00:23.6]} 27... Nxd5 {[%clk 0:00:15.6]} 28. Bf1
{[%clk 0:00:21.7]} 28... Ka7 {[%clk 0:00:14.2]} 29. Bc4 {[%clk 0:00:20.6]} 29...
Ne3 {[%clk 0:00:14.3]} 30. Bxf7 {[%clk 0:00:20.5]} 30... Nxf5 {[%clk 0:00:12.2]}
31. Bxh5 {[%clk 0:00:20.9]} 31... Rh8 {[%clk 0:00:11.8]} 32. Bg6 {[%clk
0:00:19.8]} 32... Ne3 {[%clk 0:00:11.5]} 33. Nh4 {[%clk 0:00:14]} 33... f5
{[%clk 0:00:07.9]} 34. Nxf5 {[%clk 0:00:12.5]} 34... Nxf5 {[%clk 0:00:08.4]} 35.
Bxf5 {[%clk 0:00:13.4]} 35... Rxh2 {[%clk 0:00:08.7]} 36. g4 {[%clk 0:00:13]}
36... Rg2 {[%clk 0:00:09]} 37. Ka2 {[%clk 0:00:12.4]} 37... Kb6 {[%clk
0:00:09.1]} 38. Kb3 {[%clk 0:00:12.8]} 38... Bc5 {[%clk 0:00:08.4]} 39. Kc4
{[%clk 0:00:11.3]} 39... Bd4 {[%clk 0:00:08.8]} 40. b3 {[%clk 0:00:07.6]} 40...
Kc6 {[%clk 0:00:07.9]} 41. g5 {[%clk 0:00:02.2]} 41... Rg1 {[%clk 0:00:07.4]}
42. g6 {[%clk 0:00:02.6]} 42... a5 {[%clk 0:00:06.9]} 43. b4 {[%clk 0:00:02.4]}
43... a4 {[%clk 0:00:06.5]} 44. b5+ {[%clk 0:00:02.4]} 44... Kb6 {[%clk
0:00:07]} 45. Kb4 {[%clk 0:00:03.3]} 45... Be3 {[%clk 0:00:02.5]} 46. Kxa4
{[%clk 0:00:03.4]} 46... Bh6 {[%clk 0:00:03.1]} 47. Kb4 {[%clk 0:00:03.4]} 47...
Bf8+ {[%clk 0:00:03.3]} 48. Kc4 {[%clk 0:00:03.2]} 48... Rd1 {[%clk 0:00:03.9]}
49. a4 {[%clk 0:00:02.9]} 49... Rd4+ {[%clk 0:00:04.5]} 50. Kb3 {[%clk
0:00:02.5]} 50... Rb4+ {[%clk 0:00:04.8]} 51. Kc3 {[%clk 0:00:02.6]} 51... Rxa4
{[%clk 0:00:05.1]} 52. Ng5 {[%clk 0:00:03]} 52... Ra3+ {[%clk 0:00:04.9]} 53.
Kd2 {[%clk 0:00:02.9]} 53... Bh6 {[%clk 0:00:03.3]} 54. Ke2 {[%clk 0:00:03.4]}
54... Ra2+ {[%clk 0:00:02.5]} 55. Kf3 {[%clk 0:00:03.1]} 55... Ra8 {[%clk
0:00:03.1]} 56. Ne6 {[%clk 0:00:02.6]} 56... Re8 {[%clk 0:00:02.9]} 57. Kg4
{[%clk 0:00:01.5]} 57... e4 {[%clk 0:00:02.3]} 58. Bxe4 {[%clk 0:00:01.5]} 58...
Rxe6 {[%clk 0:00:02.1]} 59. Bf5 {[%clk 0:00:02.4]} 59... Re7 {[%clk 0:00:02.6]}
60. Kh5 {[%clk 0:00:02.6]} 60... Bg7 {[%clk 0:00:03.2]} 61. Kg5 {[%clk
0:00:03.2]} 61... Kxb5 {[%clk 0:00:03.5]} 62. Bg4 {[%clk 0:00:03.9]} 62... Kc5
{[%clk 0:00:04.1]} 63. Kf5 {[%clk 0:00:04.4]} 63... Kd6 {[%clk 0:00:04.8]} 64.
Kg5 {[%clk 0:00:04.9]} 64... Re5+ {[%clk 0:00:05.4]} 65. Bf5 {[%clk 0:00:05.5]}
65... Ke7 {[%clk 0:00:06]} 66. Kf4 {[%clk 0:00:06.1]} 66... Kf6 {[%clk
0:00:06.7]} 67. Be4 {[%clk 0:00:06.4]} 67... Bh6+ {[%clk 0:00:07.1]} 68. Kf3
{[%clk 0:00:06.5]} 68... Kg7 {[%clk 0:00:06.6]} 69. Bd3 {[%clk 0:00:06.9]} 69...
Re3+ {[%clk 0:00:07.2]} 70. Kg4 {[%clk 0:00:06.3]} 70... Rxd3 {[%clk 0:00:07.8]}
0-1